[Event "*** Titled Tuesday Blitz"]
[Site "Chess.com"]
[Date "2020.02.04"]
[Round "8"]
[White "TheBigBadChessDad"]
[Black "Alopekos"]
[Result "1-0"]
[WhiteElo "2327"]
[BlackElo "2454"]
[TimeControl "180+2"]
[EndTime "14:53:26 PST"]
[Termination "TheBigBadChessDad won by resignation"]

1. d4 {[%clk 0:03:01.9]} 1... Nf6 {[%clk 0:02:59.4]} 2. Nf3 {[%clk 0:03:03]}
2... e6 {[%clk 0:02:59.2]} 3. Bf4 {[%clk 0:03:03.8]} 3... Be7 {[%clk 0:02:56.9]}
4. Nbd2 {[%clk 0:03:02.9]} 4... c5 {[%clk 0:02:54.2]} 5. c3 {[%clk 0:02:58.3]}
5... O-O {[%clk 0:02:40.6]} 6. e4 {[%clk 0:02:56.6]} 6... cxd4 {[%clk
0:02:41.7]} 7. cxd4 {[%clk 0:02:57.4]} 7... d6 {[%clk 0:02:42.8]} 8. Bd3 {[%clk
0:02:54.9]} 8... b6 {[%clk 0:02:43.5]} 9. Qe2 {[%clk 0:02:54.9]} 9... Bb7 {[%clk
0:02:44.2]} 10. h3 {[%clk 0:02:54.5]} 10... Nc6 {[%clk 0:02:45.1]} 11. a3 {[%clk
0:02:55.4]} 11... e5 {[%clk 0:02:22.1]} 12. dxe5 {[%clk 0:02:49.5]} 12... dxe5
{[%clk 0:02:21.9]} 13. Nxe5 {[%clk 0:02:50]} 13... Nd4 {[%clk 0:02:22]} 14. Qd1
{[%clk 0:02:29.5]} 14... Bd6 {[%clk 0:02:21.2]} 15. Ndc4 {[%clk 0:02:22]} 15...
Bc7 {[%clk 0:02:19.2]} 16. Bh2 {[%clk 0:01:55.1]} 16... Qe7 {[%clk 0:01:15.5]}
17. Ng4 {[%clk 0:01:14.4]} 17... Nxe4 {[%clk 0:00:51.5]} 18. O-O {[%clk
0:01:10.3]} 18... f5 {[%clk 0:00:34.7]} 19. Nge3 {[%clk 0:00:52.1]} 19... Bxh2+
{[%clk 0:00:30.3]} 20. Kxh2 {[%clk 0:00:53.4]} 20... b5 {[%clk 0:00:08.6]} 21.
Bxe4 {[%clk 0:00:44.6]} 21... Qxe4 {[%clk 0:00:07.2]} 22. f3 {[%clk 0:00:46]}
22... Qf4+ {[%clk 0:00:05.8]} 23. g3 {[%clk 0:00:44.7]} 23... Qh6 {[%clk
0:00:05.1]} 24. Qxd4 {[%clk 0:00:42]} 24... bxc4 {[%clk 0:00:06]} 25. Qxc4+
{[%clk 0:00:37]} 25... Kh8 {[%clk 0:00:07.3]} 26. Qf4 {[%clk 0:00:38]} 26... Qf6
{[%clk 0:00:04.8]} 27. Qb4 {[%clk 0:00:31.7]} 27... Rab8 {[%clk 0:00:04.4]} 28.
Qc3 {[%clk 0:00:33]} 28... Qg6 {[%clk 0:00:03.2]} 29. Rae1 {[%clk 0:00:28.9]}
29... f4 {[%clk 0:00:04.3]} 30. gxf4 {[%clk 0:00:24.4]} 30... Rxf4 {[%clk
0:00:05.3]} 31. Qc7 {[%clk 0:00:18]} 31... Rff8 {[%clk 0:00:04.1]} 32. Rg1
{[%clk 0:00:16.5]} 32... Qh6 {[%clk 0:00:04.3]} 33. Nf5 {[%clk 0:00:15.1]} 33...
Qd2+ {[%clk 0:00:05.3]} 34. Rg2 {[%clk 0:00:14.3]} 34... Qxg2+ {[%clk
0:00:02.8]} 35. Kxg2 {[%clk 0:00:14.9]} 1-0

[Event "*** Titled Tuesday Blitz"]
[Site "Chess.com"]
[Date "2020.02.04"]
[Round "8"]
[White "Arathorn2"]
[Black "reigningmvp"]
[Result "0-1"]
[WhiteElo "2246"]
[BlackElo "2345"]
[TimeControl "180+2"]
[EndTime "14:53:27 PST"]
[Termination "reigningmvp won by resignation"]

1. d4 {[%clk 0:03:01.9]} 1... Nf6 {[%clk 0:03:00.2]} 2. c4 {[%clk 0:02:57.4]}
2... e6 {[%clk 0:02:59.1]} 3. Nf3 {[%clk 0:02:57.4]} 3... d5 {[%clk 0:02:59.9]}
4. cxd5 {[%clk 0:02:56.5]} 4... exd5 {[%clk 0:02:58.6]} 5. Bg5 {[%clk
0:02:51.8]} 5... Bb4+ {[%clk 0:02:58.5]} 6. Nbd2 {[%clk 0:02:50.8]} 6... O-O
{[%clk 0:02:47.2]} 7. e3 {[%clk 0:02:47.3]} 7... h6 {[%clk 0:02:45.2]} 8. Bh4
{[%clk 0:02:43.9]} 8... Be7 {[%clk 0:02:44.8]} 9. Bd3 {[%clk 0:02:43.2]} 9...
Ne4 {[%clk 0:02:38.3]} 10. Bxe7 {[%clk 0:02:38.9]} 10... Qxe7 {[%clk 0:02:38.8]}
11. O-O {[%clk 0:02:38.2]} 11... Nd7 {[%clk 0:02:34.2]} 12. Qc2 {[%clk
0:02:31.3]} 12... Ndf6 {[%clk 0:02:31.4]} 13. Ne5 {[%clk 0:02:30.6]} 13... Nxd2
{[%clk 0:02:27.8]} 14. Qxd2 {[%clk 0:02:30.3]} 14... c6 {[%clk 0:02:28.9]} 15.
Rac1 {[%clk 0:02:28.5]} 15... Ne8 {[%clk 0:02:29.4]} 16. Bb1 {[%clk 0:02:25]}
16... Nd6 {[%clk 0:02:17.9]} 17. Qb4 {[%clk 0:02:24.2]} 17... Qf6 {[%clk
0:02:09.8]} 18. f4 {[%clk 0:02:18.6]} 18... Nf5 {[%clk 0:02:01.5]} 19. Bxf5
{[%clk 0:02:14.6]} 19... Qxf5 {[%clk 0:02:01.6]} 20. Rc3 {[%clk 0:01:42.8]}
20... f6 {[%clk 0:02:00.8]} 21. Nf3 {[%clk 0:01:42.5]} 21... Re8 {[%clk
0:02:00.6]} 22. h3 {[%clk 0:01:37]} 22... a5 {[%clk 0:01:41.1]} 23. Qb3 {[%clk
0:01:26.7]} 23... Qd7 {[%clk 0:01:37.5]} 24. a3 {[%clk 0:01:25.2]} 24... Qe7
{[%clk 0:01:33]} 25. Ne1 {[%clk 0:01:20.4]} 25... Bf5 {[%clk 0:01:31.3]} 26. Rf3
{[%clk 0:01:13.9]} 26... Be4 {[%clk 0:01:31.2]} 27. Rg3 {[%clk 0:01:14.3]} 27...
h5 {[%clk 0:01:30.2]} 28. Nd3 {[%clk 0:01:13]} 28... h4 {[%clk 0:01:29.2]} 29.
Rg4 {[%clk 0:01:13.5]} 29... Bf5 {[%clk 0:01:26.4]} 30. Rxh4 {[%clk 0:01:13]}
30... Qxe3+ {[%clk 0:01:27.2]} 31. Kh2 {[%clk 0:01:11.5]} 31... Qxd4 {[%clk
0:01:15.1]} 32. Nc5 {[%clk 0:01:06.8]} 32... b5 {[%clk 0:01:10.1]} 33. Nb7
{[%clk 0:01:07.1]} 33... Re1 {[%clk 0:01:04.5]} 34. Nd6 {[%clk 0:00:45.1]} 34...
Qg1+ {[%clk 0:00:55.3]} 35. Kg3 {[%clk 0:00:45.2]} 35... Re2 {[%clk 0:00:53.1]}
36. Rh8+ {[%clk 0:00:24]} 36... Kxh8 {[%clk 0:00:52.1]} 37. Nxf5 {[%clk
0:00:25.9]} 37... Rxg2+ {[%clk 0:00:35.4]} 38. Kh4 {[%clk 0:00:25]} 38... Qf2+
{[%clk 0:00:36.4]} 39. Rg3 {[%clk 0:00:18.9]} 39... Qxf4+ {[%clk 0:00:37.3]} 40.
Rg4 {[%clk 0:00:16.9]} 40... Rxg4+ {[%clk 0:00:33.7]} 41. hxg4 {[%clk
0:00:17.2]} 41... Qh2+ {[%clk 0:00:32.2]} 42. Qh3 {[%clk 0:00:17.2]} 42... g5+
{[%clk 0:00:33.5]} 0-1

[Event "*** Titled Tuesday Blitz"]
[Site "Chess.com"]
[Date "2020.02.04"]
[Round "8"]
[White "Firouzja2003"]
[Black "FairChess_on_YouTube"]
[Result "1/2-1/2"]
[WhiteElo "3147"]
[BlackElo "3043"]
[TimeControl "180+2"]
[EndTime "14:53:47 PST"]
[Termination "Game drawn by repetition"]

1. e4 {[%clk 0:03:01.9]} 1... e5 {[%clk 0:03:00.5]} 2. Nf3 {[%clk 0:03:03.2]}
2... Nc6 {[%clk 0:03:01.5]} 3. Bb5 {[%clk 0:03:04.8]} 3... Nf6 {[%clk
0:03:02.5]} 4. d3 {[%clk 0:03:05.9]} 4... Bc5 {[%clk 0:03:03.5]} 5. c3 {[%clk
0:03:07.4]} 5... O-O {[%clk 0:03:03.5]} 6. O-O {[%clk 0:03:07.4]} 6... d6 {[%clk
0:03:03.5]} 7. h3 {[%clk 0:03:04.2]} 7... h6 {[%clk 0:03:03.9]} 8. Re1 {[%clk
0:03:05.1]} 8... a6 {[%clk 0:02:58]} 9. Bxc6 {[%clk 0:03:00.8]} 9... bxc6 {[%clk
0:02:59.9]} 10. d4 {[%clk 0:03:02.5]} 10... Ba7 {[%clk 0:02:53.6]} 11. dxe5
{[%clk 0:02:42.3]} 11... dxe5 {[%clk 0:02:55.5]} 12. Qe2 {[%clk 0:02:44.1]}
12... Re8 {[%clk 0:02:49.4]} 13. Be3 {[%clk 0:02:44.3]} 13... Nh5 {[%clk
0:02:41.7]} 14. Bxa7 {[%clk 0:02:33]} 14... Rxa7 {[%clk 0:02:43.6]} 15. Nbd2
{[%clk 0:02:33.7]} 15... Nf4 {[%clk 0:02:21.8]} 16. Qe3 {[%clk 0:02:34.4]} 16...
Rb7 {[%clk 0:02:23]} 17. b4 {[%clk 0:02:33.2]} 17... Qf6 {[%clk 0:02:16.5]} 18.
Kh2 {[%clk 0:02:12.3]} 18... Rd8 {[%clk 0:02:17.4]} 19. Red1 {[%clk 0:01:15.6]}
19... Bxh3 {[%clk 0:01:25]} 20. gxh3 {[%clk 0:00:33.1]} 20... Rd3 {[%clk
0:01:24.2]} 21. Qe1 {[%clk 0:00:34.3]} 21... Qe6 {[%clk 0:01:25]} 22. Qf1 {[%clk
0:00:35.5]} 22... Rb8 {[%clk 0:01:26.2]} 23. Ng1 {[%clk 0:00:33.7]} 23... Rxc3
{[%clk 0:00:53.1]} 24. a3 {[%clk 0:00:34.7]} 24... Rc2 {[%clk 0:00:27.3]} 25.
Rac1 {[%clk 0:00:19.8]} 25... Ra2 {[%clk 0:00:28.2]} 26. Nc4 {[%clk 0:00:18.9]}
26... c5 {[%clk 0:00:25]} 27. Rd2 {[%clk 0:00:12]} 27... Rxd2 {[%clk 0:00:22.9]}
28. Nxd2 {[%clk 0:00:13.9]} 28... cxb4 {[%clk 0:00:24]} 29. axb4 {[%clk
0:00:15.8]} 29... Rxb4 {[%clk 0:00:23.9]} 30. Rxc7 {[%clk 0:00:10.4]} 30... Rb2
{[%clk 0:00:20.6]} 31. Ngf3 {[%clk 0:00:11.8]} 31... a5 {[%clk 0:00:15.7]} 32.
Rc5 {[%clk 0:00:10]} 32... Qd6 {[%clk 0:00:13.1]} 33. Rxa5 {[%clk 0:00:09.1]}
33... Rxd2 {[%clk 0:00:14.1]} 34. Nxd2 {[%clk 0:00:11]} 34... Qxd2 {[%clk
0:00:15.5]} 35. Rxe5 {[%clk 0:00:12.2]} 35... Qc3 {[%clk 0:00:16.2]} 36. Rf5
{[%clk 0:00:04.3]} 36... Qf3 {[%clk 0:00:17]} 37. e5 {[%clk 0:00:04.1]} 37... g6
{[%clk 0:00:16.6]} 38. Rf6 {[%clk 0:00:05.3]} 38... Kg7 {[%clk 0:00:17.5]} 39.
h4 {[%clk 0:00:05]} 39... h5 {[%clk 0:00:18.4]} 40. Kg1 {[%clk 0:00:04.4]} 40...
Qg4+ {[%clk 0:00:14.8]} 41. Kh2 {[%clk 0:00:06]} 41... Qxh4+ {[%clk 0:00:15.9]}
42. Kg1 {[%clk 0:00:07.5]} 42... Qg5+ {[%clk 0:00:16.2]} 43. Kh1 {[%clk
0:00:09.1]} 43... Qh4+ {[%clk 0:00:16]} 44. Kg1 {[%clk 0:00:10.4]} 44... Qg4+
{[%clk 0:00:14.8]} 45. Kh2 {[%clk 0:00:10.8]} 45... Qh4+ {[%clk 0:00:11.7]} 46.
Kg1 {[%clk 0:00:12]} 1/2-1/2

[Event "*** Titled Tuesday Blitz"]
[Site "Chess.com"]
[Date "2020.02.04"]
[Round "8"]
[White "pawnwonder"]
[Black "Andro2"]
[Result "0-1"]
[WhiteElo "2163"]
[BlackElo "2441"]
[TimeControl "180+2"]
[EndTime "14:53:50 PST"]
[Termination "Andro2 won by checkmate"]

1. e4 {[%clk 0:02:58.1]} 1... d6 {[%clk 0:02:59.7]} 2. d4 {[%clk 0:02:58.5]}
2... Nf6 {[%clk 0:03:01.2]} 3. Nc3 {[%clk 0:02:59.6]} 3... g6 {[%clk 0:03:02.7]}
4. f4 {[%clk 0:03:01]} 4... Bg7 {[%clk 0:03:03.4]} 5. Nf3 {[%clk 0:03:02.2]}
5... O-O {[%clk 0:03:04.2]} 6. e5 {[%clk 0:03:03.1]} 6... dxe5 {[%clk
0:03:03.8]} 7. fxe5 {[%clk 0:03:01]} 7... Nd5 {[%clk 0:03:03.7]} 8. Bc4 {[%clk
0:03:02.1]} 8... Nxc3 {[%clk 0:03:01.2]} 9. bxc3 {[%clk 0:03:04]} 9... c5 {[%clk
0:02:58.3]} 10. O-O {[%clk 0:03:04.7]} 10... Bg4 {[%clk 0:02:58.1]} 11. Be3
{[%clk 0:03:04.3]} 11... Nc6 {[%clk 0:02:55.5]} 12. h3 {[%clk 0:02:47.8]} 12...
Bxf3 {[%clk 0:02:55.8]} 13. Rxf3 {[%clk 0:02:48.4]} 13... cxd4 {[%clk
0:02:57.2]} 14. cxd4 {[%clk 0:02:49]} 14... e6 {[%clk 0:02:48.8]} 15. Rb1 {[%clk
0:02:45]} 15... Rc8 {[%clk 0:02:38.4]} 16. Bb3 {[%clk 0:02:18.7]} 16... Na5
{[%clk 0:02:23.4]} 17. Qd2 {[%clk 0:02:16.3]} 17... Nc4 {[%clk 0:02:20]} 18.
Bxc4 {[%clk 0:02:17.3]} 18... Rxc4 {[%clk 0:02:20.5]} 19. Rxb7 {[%clk
0:02:13.1]} 19... Qc8 {[%clk 0:02:12.7]} 20. Rb2 {[%clk 0:02:04]} 20... Rd8
{[%clk 0:02:04.7]} 21. Qf2 {[%clk 0:01:56.7]} 21... Rd7 {[%clk 0:02:05.3]} 22.
Qe2 {[%clk 0:01:03.6]} 22... Rdc7 {[%clk 0:01:52.2]} 23. Rf2 {[%clk 0:01:04.5]}
23... a5 {[%clk 0:01:47.9]} 24. Kh1 {[%clk 0:00:59.7]} 24... h5 {[%clk
0:01:47.4]} 25. Qf3 {[%clk 0:00:55]} 25... Rc3 {[%clk 0:01:45.3]} 26. Qf4 {[%clk
0:00:52.4]} 26... a4 {[%clk 0:01:38.8]} 27. a3 {[%clk 0:00:50.9]} 27... Rxa3
{[%clk 0:01:30.2]} 28. Rf1 {[%clk 0:00:52]} 28... Rac3 {[%clk 0:01:27.5]} 29.
Rfb1 {[%clk 0:00:52.6]} 29... Qd7 {[%clk 0:01:14.5]} 30. Rb8+ {[%clk 0:00:44.4]}
30... Kh7 {[%clk 0:01:13.5]} 31. g4 {[%clk 0:00:45.2]} 31... Qd5+ {[%clk
0:01:07.6]} 32. Kh2 {[%clk 0:00:34]} 32... h4 {[%clk 0:01:04]} 33. Bf2 {[%clk
0:00:22.6]} 33... Rxc2 {[%clk 0:01:01.4]} 34. R1b2 {[%clk 0:00:23.4]} 34... Rxb2
{[%clk 0:00:51.6]} 35. Rxb2 {[%clk 0:00:23.1]} 35... a3 {[%clk 0:00:51]} 36. Rb8
{[%clk 0:00:17.7]} 36... a2 {[%clk 0:00:30.3]} 37. Qg5 {[%clk 0:00:14.7]} 37...
a1=Q {[%clk 0:00:22.9]} 38. Qxh4+ {[%clk 0:00:15.7]} 38... Bh6 {[%clk
0:00:24.2]} 39. Qf6 {[%clk 0:00:06.7]} 39... Qah1+ {[%clk 0:00:19.7]} 40. Kg3
{[%clk 0:00:08]} 40... Qdg2+ {[%clk 0:00:19.6]} 41. Kh4 {[%clk 0:00:08.4]} 41...
Qhxh3# {[%clk 0:00:20.4]} 0-1

[Event "*** Titled Tuesday Blitz"]
[Site "Chess.com"]
[Date "2020.02.04"]
[Round "8"]
[White "Bathory44"]
[Black "IakovUlivar"]
[Result "1/2-1/2"]
[WhiteElo "2588"]
[BlackElo "2464"]
[TimeControl "180+2"]
[EndTime "14:53:51 PST"]
[Termination "Game drawn by repetition"]

1. e4 {[%clk 0:03:01.9]} 1... c5 {[%clk 0:03:00.3]} 2. c3 {[%clk 0:03:02.7]}
2... e6 {[%clk 0:03:00.8]} 3. d4 {[%clk 0:03:02.9]} 3... d5 {[%clk 0:03:02.2]}
4. exd5 {[%clk 0:03:04.3]} 4... exd5 {[%clk 0:03:02.8]} 5. Bb5+ {[%clk
0:03:04.9]} 5... Bd7 {[%clk 0:03:02.2]} 6. Bxd7+ {[%clk 0:03:05.6]} 6... Nxd7
{[%clk 0:03:03.8]} 7. Nf3 {[%clk 0:03:07]} 7... Ngf6 {[%clk 0:03:04.9]} 8. O-O
{[%clk 0:03:07.8]} 8... Be7 {[%clk 0:03:05.7]} 9. Re1 {[%clk 0:02:58.8]} 9...
O-O {[%clk 0:03:05.6]} 10. dxc5 {[%clk 0:02:55.5]} 10... Nxc5 {[%clk 0:03:05.6]}
11. Be3 {[%clk 0:02:57]} 11... Ne6 {[%clk 0:02:52.5]} 12. Nbd2 {[%clk
0:02:52.8]} 12... Re8 {[%clk 0:02:49.7]} 13. Nf1 {[%clk 0:02:52]} 13... Ne4
{[%clk 0:02:43.6]} 14. Nd4 {[%clk 0:02:48.8]} 14... Bf6 {[%clk 0:02:39.9]} 15.
Nxe6 {[%clk 0:02:39.7]} 15... Rxe6 {[%clk 0:02:37.7]} 16. Qb3 {[%clk 0:02:36.5]}
16... b6 {[%clk 0:01:53.4]} 17. Rad1 {[%clk 0:02:36.6]} 17... Rd6 {[%clk
0:01:51.2]} 18. Bf4 {[%clk 0:02:11.3]} 18... Nc5 {[%clk 0:01:38.6]} 19. Qa3
{[%clk 0:02:05.5]} 19... Re6 {[%clk 0:01:36.3]} 20. Be3 {[%clk 0:01:56.6]} 20...
Be7 {[%clk 0:01:31.9]} 21. Bxc5 {[%clk 0:01:43.4]} 21... Bxc5 {[%clk 0:01:33.8]}
22. Qb3 {[%clk 0:01:39.3]} 22... Qf6 {[%clk 0:01:33.8]} 23. Ne3 {[%clk
0:01:30.5]} 23... Bxe3 {[%clk 0:01:29.8]} 24. Rxe3 {[%clk 0:01:30.6]} 24... Rxe3
{[%clk 0:01:27.3]} 25. fxe3 {[%clk 0:01:32.5]} 25... Qe6 {[%clk 0:01:18.5]} 26.
Qxd5 {[%clk 0:01:30.1]} 26... Qxe3+ {[%clk 0:01:19.1]} 27. Kh1 {[%clk
0:01:31.5]} 27... Re8 {[%clk 0:01:18.4]} 28. h3 {[%clk 0:01:32.4]} 28... g6
{[%clk 0:01:16.1]} 29. Qd2 {[%clk 0:01:26.5]} 29... Qg3 {[%clk 0:01:07.5]} 30.
Rf1 {[%clk 0:01:23.4]} 30... Qe5 {[%clk 0:00:54.5]} 31. Qf2 {[%clk 0:01:20.3]}
31... Re7 {[%clk 0:00:49.4]} 32. Rd1 {[%clk 0:01:19.9]} 32... Kg7 {[%clk
0:00:48.7]} 33. Kg1 {[%clk 0:00:54.4]} 33... h5 {[%clk 0:00:49.2]} 34. Qd4
{[%clk 0:00:30.4]} 34... Qxd4+ {[%clk 0:00:44.1]} 35. Rxd4 {[%clk 0:00:32.3]}
35... Re2 {[%clk 0:00:44.3]} 36. Rb4 {[%clk 0:00:33.3]} 36... Kf6 {[%clk
0:00:41.2]} 37. Rb5 {[%clk 0:00:31.7]} 37... Ke6 {[%clk 0:00:39.7]} 38. a4
{[%clk 0:00:28.5]} 38... Kd6 {[%clk 0:00:38.6]} 39. a5 {[%clk 0:00:22.4]} 39...
Kc6 {[%clk 0:00:38]} 40. c4 {[%clk 0:00:23.6]} 40... h4 {[%clk 0:00:22.3]} 41.
axb6 {[%clk 0:00:24.1]} 41... axb6 {[%clk 0:00:23]} 42. b3 {[%clk 0:00:25.3]}
42... Re3 {[%clk 0:00:17.3]} 43. Kf1 {[%clk 0:00:26]} 43... Rc3 {[%clk
0:00:17.2]} 44. Kf2 {[%clk 0:00:26.4]} 44... f5 {[%clk 0:00:16.7]} 45. Kf1
{[%clk 0:00:23.2]} 45... Rc1+ {[%clk 0:00:14.9]} 46. Kf2 {[%clk 0:00:24.3]}
46... Rc2+ {[%clk 0:00:14.6]} 47. Kf3 {[%clk 0:00:24.5]} 47... Rc3+ {[%clk
0:00:16]} 48. Kf2 {[%clk 0:00:25.6]} 48... Rc2+ {[%clk 0:00:15.1]} 49. Kf3
{[%clk 0:00:26.6]} 49... Rc3+ {[%clk 0:00:16.4]} 50. Kf2 {[%clk 0:00:28]} 50...
Rc2+ {[%clk 0:00:17.1]} 1/2-1/2

[Event "*** Titled Tuesday Blitz"]
[Site "Chess.com"]
[Date "2020.02.04"]
[Round "8"]
[White "GadimbayliA"]
[Black "Shukh_Nikolay"]
[Result "1-0"]
[WhiteElo "2902"]
[BlackElo "2549"]
[TimeControl "180+2"]
[EndTime "14:53:53 PST"]
[Termination "GadimbayliA won by resignation"]

1. e4 {[%clk 0:03:01.9]} 1... e5 {[%clk 0:03:00.1]} 2. Nf3 {[%clk 0:03:02.9]}
2... Nc6 {[%clk 0:03:01.2]} 3. Nc3 {[%clk 0:03:03.4]} 3... Nf6 {[%clk
0:03:01.8]} 4. d4 {[%clk 0:03:04.7]} 4... Bb4 {[%clk 0:03:02.3]} 5. d5 {[%clk
0:03:02.7]} 5... Ne7 {[%clk 0:03:02.5]} 6. Bd3 {[%clk 0:03:03.8]} 6... d6 {[%clk
0:03:01.5]} 7. O-O {[%clk 0:03:04.9]} 7... Bxc3 {[%clk 0:03:01.6]} 8. bxc3
{[%clk 0:03:05.9]} 8... O-O {[%clk 0:03:01.9]} 9. h3 {[%clk 0:02:51.7]} 9... Ng6
{[%clk 0:02:55.5]} 10. Nh2 {[%clk 0:02:40.4]} 10... h6 {[%clk 0:02:47]} 11. Ng4
{[%clk 0:02:40.8]} 11... Nxg4 {[%clk 0:02:45]} 12. hxg4 {[%clk 0:02:42.7]} 12...
Qh4 {[%clk 0:02:42.3]} 13. f3 {[%clk 0:02:43.2]} 13... Bd7 {[%clk 0:02:07.3]}
14. Be3 {[%clk 0:02:41.5]} 14... b6 {[%clk 0:02:06.7]} 15. Qd2 {[%clk 0:02:29]}
15... a5 {[%clk 0:01:47.9]} 16. Rab1 {[%clk 0:02:27.4]} 16... Qg3 {[%clk
0:01:28.3]} 17. Qf2 {[%clk 0:02:23.4]} 17... Qxf2+ {[%clk 0:01:28.7]} 18. Kxf2
{[%clk 0:02:25.3]} 18... f6 {[%clk 0:01:20.5]} 19. g3 {[%clk 0:02:24.6]} 19...
Rf7 {[%clk 0:01:20]} 20. Rh1 {[%clk 0:02:22.2]} 20... Kf8 {[%clk 0:01:18.9]} 21.
Be2 {[%clk 0:02:21.8]} 21... Ke7 {[%clk 0:01:16.6]} 22. f4 {[%clk 0:02:23.2]}
22... Kd8 {[%clk 0:01:15.1]} 23. Kg2 {[%clk 0:02:19.3]} 23... Kc8 {[%clk
0:01:15.1]} 24. Bd2 {[%clk 0:01:28.7]} 24... Kb7 {[%clk 0:01:14.9]} 25. g5
{[%clk 0:01:26.1]} 25... fxg5 {[%clk 0:01:09.4]} 26. Bh5 {[%clk 0:01:25.2]}
26... exf4 {[%clk 0:00:20.6]} 27. Bxg6 {[%clk 0:01:24.8]} 27... Rf6 {[%clk
0:00:21.5]} 28. Bh5 {[%clk 0:01:24.2]} 28... fxg3 {[%clk 0:00:21.1]} 29. Rhf1
{[%clk 0:01:10]} 29... Raf8 {[%clk 0:00:21.5]} 30. Rxf6 {[%clk 0:01:10.8]} 30...
Rxf6 {[%clk 0:00:22.2]} 31. Kxg3 {[%clk 0:01:12.3]} 31... g6 {[%clk 0:00:22.2]}
32. Be2 {[%clk 0:01:09.8]} 32... Ba4 {[%clk 0:00:17.2]} 33. Bd3 {[%clk
0:01:05.5]} 33... g4 {[%clk 0:00:15.7]} 34. Bxh6 {[%clk 0:00:48.7]} 34... Rf3+
{[%clk 0:00:14.4]} 35. Kxg4 {[%clk 0:00:49.6]} 35... Rf2 {[%clk 0:00:13.5]} 36.
Kg3 {[%clk 0:00:50.4]} 36... Rf7 {[%clk 0:00:06.1]} 37. Bd2 {[%clk 0:00:51.1]}
37... Rh7 {[%clk 0:00:06.6]} 38. Kg2 {[%clk 0:00:48.8]} 38... Rh4 {[%clk
0:00:07]} 39. c4 {[%clk 0:00:36.8]} 39... Rg4+ {[%clk 0:00:04.9]} 40. Kf3 {[%clk
0:00:36.2]} 40... Rh4 {[%clk 0:00:05.8]} 41. Bxa5 {[%clk 0:00:32.2]} 41... Rh2
{[%clk 0:00:06]} 42. Kg3 {[%clk 0:00:33.2]} 42... Bxc2 {[%clk 0:00:04]} 43. Kxh2
{[%clk 0:00:33.1]} 43... Bxd3 {[%clk 0:00:05.5]} 44. Rd1 {[%clk 0:00:33]} 44...
Bxc4 {[%clk 0:00:04.8]} 45. Bc3 {[%clk 0:00:33.5]} 45... Bxa2 {[%clk 0:00:06.1]}
46. Kg3 {[%clk 0:00:33.3]} 46... Ka6 {[%clk 0:00:07.2]} 47. Kf4 {[%clk
0:00:33.2]} 47... Kb5 {[%clk 0:00:08.7]} 48. Bf6 {[%clk 0:00:34.7]} 48... Kc4
{[%clk 0:00:09.6]} 49. Rc1+ {[%clk 0:00:35.8]} 49... Kd3 {[%clk 0:00:10.2]} 50.
Rxc7 {[%clk 0:00:37.7]} 50... b5 {[%clk 0:00:11.7]} 1-0

[Event "*** Titled Tuesday Blitz"]
[Site "Chess.com"]
[Date "2020.02.04"]
[Round "8"]
[White "Storne89"]
[Black "SARGISMV"]
[Result "0-1"]
[WhiteElo "2632"]
[BlackElo "2435"]
[TimeControl "180+2"]
[EndTime "14:53:58 PST"]
[Termination "SARGISMV won by resignation"]

1. e4 {[%clk 0:03:01.9]} 1... e6 {[%clk 0:02:59.3]} 2. d4 {[%clk 0:02:58.8]}
2... d5 {[%clk 0:03:00.4]} 3. Nc3 {[%clk 0:03:00.2]} 3... Bb4 {[%clk 0:03:00.7]}
4. e5 {[%clk 0:03:01.3]} 4... Ne7 {[%clk 0:03:01.9]} 5. a3 {[%clk 0:03:01.2]}
5... Bxc3+ {[%clk 0:03:03.2]} 6. bxc3 {[%clk 0:03:03.1]} 6... c5 {[%clk
0:03:04.5]} 7. h4 {[%clk 0:03:04]} 7... Qc7 {[%clk 0:03:04.7]} 8. h5 {[%clk
0:03:02.7]} 8... h6 {[%clk 0:02:52.1]} 9. Bd2 {[%clk 0:03:03.1]} 9... b6 {[%clk
0:02:47.2]} 10. Bb5+ {[%clk 0:03:01.2]} 10... Bd7 {[%clk 0:02:47.7]} 11. Bd3
{[%clk 0:03:02.6]} 11... c4 {[%clk 0:02:47.7]} 12. Be2 {[%clk 0:03:01]} 12...
Ba4 {[%clk 0:02:48.3]} 13. f4 {[%clk 0:02:58.7]} 13... Kd7 {[%clk 0:02:48.8]}
14. Nf3 {[%clk 0:02:56.1]} 14... Nbc6 {[%clk 0:02:48.4]} 15. g4 {[%clk
0:02:56.6]} 15... f5 {[%clk 0:02:32.2]} 16. Nh4 {[%clk 0:02:49.8]} 16... Rhf8
{[%clk 0:02:25.4]} 17. Rg1 {[%clk 0:02:48.1]} 17... Rf7 {[%clk 0:02:17.7]} 18.
gxf5 {[%clk 0:02:46.8]} 18... Nxf5 {[%clk 0:02:14]} 19. Nxf5 {[%clk 0:02:47]}
19... exf5 {[%clk 0:02:02]} 20. Rg6 {[%clk 0:02:47.7]} 20... Nd8 {[%clk
0:01:55]} 21. Bf3 {[%clk 0:02:41.9]} 21... Bc6 {[%clk 0:01:42.4]} 22. Rd6+
{[%clk 0:02:42]} 22... Ke7 {[%clk 0:01:37.8]} 23. Rxd5 {[%clk 0:02:27.7]} 23...
Qb7 {[%clk 0:01:05.7]} 24. e6 {[%clk 0:00:53.2]} 24... Nxe6 {[%clk 0:01:04.7]}
25. Re5 {[%clk 0:00:54.5]} 25... Bxf3 {[%clk 0:01:04.6]} 26. Qb1 {[%clk
0:00:56.4]} 26... Rd8 {[%clk 0:00:31.1]} 27. Qb4+ {[%clk 0:00:56.7]} 27... Kf6
{[%clk 0:00:24]} 28. Qxc4 {[%clk 0:00:55.9]} 28... Re7 {[%clk 0:00:22.2]} 29.
Be3 {[%clk 0:00:54.9]} 29... Bg4 {[%clk 0:00:15.4]} 30. d5 {[%clk 0:00:49.3]}
30... Nc5 {[%clk 0:00:16.3]} 31. Bd4 {[%clk 0:00:29.1]} 31... Rxe5+ {[%clk
0:00:14.7]} 32. fxe5+ {[%clk 0:00:19.9]} 32... Kf7 {[%clk 0:00:13.4]} 33. Bxc5
{[%clk 0:00:17.7]} 33... bxc5 {[%clk 0:00:13.5]} 34. d6+ {[%clk 0:00:16.5]}
34... Kf8 {[%clk 0:00:14.7]} 35. Qd3 {[%clk 0:00:05.5]} 35... Qh1+ {[%clk
0:00:15.2]} 36. Kd2 {[%clk 0:00:06.9]} 36... Qxa1 {[%clk 0:00:14.5]} 37. Qc4
{[%clk 0:00:03.1]} 37... Qd1+ {[%clk 0:00:14.8]} 38. Ke3 {[%clk 0:00:05]} 38...
Qg1+ {[%clk 0:00:14.1]} 39. Kd2 {[%clk 0:00:05.6]} 39... Qf2+ {[%clk 0:00:14.6]}
40. Kc1 {[%clk 0:00:06.3]} 40... Qe3+ {[%clk 0:00:15.2]} 41. Kb2 {[%clk
0:00:07.5]} 41... Qxe5 {[%clk 0:00:16]} 0-1